bitfinex/quotes_BTCUSD_20250716
["timestamp","ask_amount","ask_price","bid_price","bid_amount"]
[1752701565708,1.58071411,119920.0,119910.0,0.06740171]
[1752701566175,0.18347057,119910.0,119900.0,0.003]
[1752701566404,0.7905017,119910.0,119900.0,0.00305034]
[1752701566606,1.18268399,119910.0,119900.0,0.00305034]
[1752701566813,1.20773199,119910.0,119900.0,0.00305034]
[1752701568489,1.20873199,119910.0,119900.0,0.00305034]
[1752701569295,1.20873199,119910.0,119900.0,0.01858887]
[1752701569492,0.6495697,119910.0,119900.0,0.02360887]
[1752701569752,0.42750885,119910.0,119900.0,0.05550887]
[1752701569943,0.40946085,119910.0,119900.0,0.05550887]
[1752701570209,0.01533924,119910.0,119900.0,0.63639683]
[1752701570459,0.1802787,119910.0,119900.0,0.24733454]
[1752701570690,0.33063164,119910.0,119900.0,0.23065475]
[1752701570931,0.34110891,119910.0,119900.0,0.24733496]
[1752701571151,0.33897156,119910.0,119900.0,0.22231454]
[1752701571377,0.33197156,119910.0,119900.0,0.23899475]
[1752701571588,0.19901156,119910.0,119900.0,0.23065475]
[1752701571807,0.33293156,119910.0,119900.0,0.23899489]
[1752701572021,0.80750413,119910.0,119900.0,0.02360887]
[1752701572242,0.80964413,119910.0,119900.0,0.01858887]
[1752701572448,0.83325313,119910.0,119900.0,0.01858887]
[1752701573076,0.82477111,119910.0,119900.0,0.01858495]
[1752701573461,0.82477111,119910.0,119900.0,0.02059495]
[1752701573668,0.82263111,119910.0,119900.0,0.02360495]
[1752701573872,0.44221084,119910.0,119900.0,0.02360495]
[1752701574010,0.16009737,119910.0,119900.0,0.2471267]
[1752701574234,0.34143066,119910.0,119900.0,0.05530103]
[1752701574431,0.4102624,119910.0,119900.0,0.05530103]
[1752701574809,0.4102624,119910.0,119900.0,0.2221067]
[1752701575021,0.4186017,119910.0,119900.0,0.23878705]
[1752701575466,0.4186017,119910.0,119900.0,0.24712705]
[1752701576447,0.4186017,119910.0,119900.0,0.06364131]
[1752701576685,0.4102624,119910.0,119900.0,0.06364131]
[1752701577040,0.4102624,119910.0,119900.0,0.02360103]
[1752701577301,0.4124024,119910.0,119900.0,0.02360103]
[1752701577516,0.4102624,119910.0,119900.0,0.02360103]
[1752701579087,0.4102624,119910.0,119900.0,0.03950103]
[1752701581217,0.4102624,119910.0,119900.0,0.03952219]
[1752701582092,0.4102624,119910.0,119900.0,0.02362219]
[1752701589473,0.4102624,119910.0,119900.0,0.0236498]
[1752701590121,0.4102624,119910.0,119900.0,0.02364965]
[1752701590755,0.4263624,119910.0,119900.0,0.01862965]
[1752701590964,0.4448024,119910.0,119900.0,0.01862965]
[1752701591216,0.4448024,119910.0,119900.0,0.01863218]
[1752701591425,0.4448024,119910.0,119900.0,0.02077218]
[1752701592257,0.4285024,119910.0,119900.0,0.02077218]
[1752701592504,0.4285024,119910.0,119900.0,0.02378218]
[1752701593188,0.81817106,119910.0,119900.0,0.02378218]
[1752701593795,0.83739106,119910.0,119900.0,0.01863218]
[1752701596384,0.86243706,119910.0,119900.0,0.01863218]
[1752701597686,1.20243706,119910.0,119900.0,0.01863218]
[1752701598111,1.20243706,119910.0,119900.0,0.00305034]
[1752701598313,1.20243706,119910.0,119900.0,0.01863986]
[1752701600953,0.58771056,119890.0,119880.0,1e-08]
[1752701601166,0.84089084,119890.0,119880.0,5.06e-05]
[1752701601395,0.84400084,119890.0,119880.0,5.06e-05]
[1752701601624,0.84835336,119890.0,119880.0,5.06e-05]
[1752701602258,0.87340336,119890.0,119880.0,5.06e-05]
[1752701602685,0.87340336,119890.0,119880.0,0.0010506]
[1752701604559,1.21340336,119890.0,119880.0,0.0010506]
[1752701605209,1.23738402,119890.0,119880.0,0.0010506]
[1752701605633,1.23738402,119890.0,119880.0,5.06e-05]
[1752701605850,1.21940336,119890.0,119880.0,5.06e-05]
[1752701606905,1.08217336,119890.0,119880.0,0.0021906]
[1752701607120,0.41332385,119890.0,119880.0,0.0375006]
[1752701607570,0.80299251,119890.0,119880.0,0.0211006]
[1752701607769,0.80299251,119890.0,119880.0,0.0052006]
[1752701607999,0.81753336,119890.0,119880.0,0.0052006]
[1752701608262,0.85107336,119890.0,119880.0,5.06e-05]
[1752701608495,0.68357336,119890.0,119880.0,0.0052006]
[1752701608719,0.81753336,119890.0,119880.0,0.0375006]
[1752701608976,0.27936385,119890.0,119880.0,0.2126757]
[1752701609205,0.4278247,119890.0,119880.0,0.2043341]
[1752701609419,0.41948407,119890.0,119880.0,0.0375006]
[1752701609629,0.41348407,119890.0,119880.0,0.04584227]
[1752701609837,0.40514323,119890.0,119880.0,0.04584227]
[1752701610165,0.40514323,119890.0,119880.0,0.0375006]
[1752701612833,0.40514323,119890.0,119880.0,0.05306698]
[1752701613260,0.40514323,119890.0,119880.0,0.02076698]
[1752701614321,0.79676189,119890.0,119880.0,0.02076698]
[1752701614767,0.79481189,119890.0,119880.0,0.02076698]
[1752701615230,0.40514323,119890.0,119880.0,0.0205006]
[1752701615473,0.40514323,119890.0,119880.0,0.03606947]
[1752701616560,0.40514323,119890.0,119880.0,0.02076947]
[1752701617430,0.79481189,119890.0,119880.0,0.02076947]
[1752701618898,0.79676189,119890.0,119880.0,0.02076947]
[1752701619525,0.82886189,119890.0,119880.0,0.01561947]
[1752701624006,0.82886189,119890.0,119880.0,0.01564963]
[1752701625029,0.82886189,119890.0,119880.0,0.01565091]
[1752701626255,0.83199189,119890.0,119880.0,0.01565091]
[1752701628981,1.17199189,119890.0,119880.0,0.01565091]
[1752701629224,1.17199189,119890.0,119880.0,1e-08]
[1752701629445,1.18764289,119890.0,119880.0,1e-08]
[1752701631291,1.57731155,119890.0,119880.0,1e-08]
[1752701631512,1.18764289,119890.0,119880.0,1e-08]
[1752701631762,1.57731155,119890.0,119880.0,1e-08]
[1752701631980,0.79797423,119890.0,119880.0,1e-08]
[1752701632202,1.18764289,119890.0,119880.0,1e-08]
[1752701632421,1.57731155,119890.0,119880.0,1e-08]
[1752701632640,0.18973049,119870.0,119860.0,0.0122]
[1752701632851,0.83125943,119870.0,119860.0,0.01225063]
[1752701633076,0.83438943,119870.0,119860.0,0.01225063]
[1752701633280,0.83125943,119870.0,119860.0,0.01225063]
[1752701634360,0.40812077,119870.0,119860.0,0.04888063]
[1752701634960,0.40912077,119870.0,119860.0,0.04888063]
[1752701635779,0.41746293,119870.0,119860.0,0.22408488]
[1752701636037,0.24429697,119870.0,119860.0,0.24077037]
[1752701636250,0.25883782,119870.0,119860.0,0.24911294]
[1752701636871,0.42568523,119870.0,119860.0,0.24077037]
[1752701637084,0.4340276,119870.0,119860.0,0.23242773]
[1752701637302,0.42568544,119870.0,119860.0,0.23242773]
[1752701637541,0.41734321,119870.0,119860.0,0.22408488]
[1752701637964,0.40900091,119870.0,119860.0,0.21574196]
[1752701638850,0.40900091,119870.0,119860.0,0.22408502]
[1752701639254,0.40900091,119870.0,119860.0,0.23242801]
[1752701640519,0.40900091,119870.0,119860.0,0.24911371]
[1752701640735,0.40900091,119870.0,119860.0,0.24911378]
[1752701641144,0.40900091,119870.0,119860.0,0.26470497]
[1752701641356,0.40900091,119870.0,119860.0,0.27304775]
[1752701641718,0.40900091,119870.0,119860.0,0.26470497]
[1752701642651,0.40900091,119870.0,119860.0,0.2163792]
[1752701643111,0.40900091,119870.0,119860.0,0.03283182]
[1752701643536,0.80075957,119870.0,119860.0,0.03283182]
[1752701643762,0.83265957,119870.0,119860.0,0.03283182]
[1752701644599,0.83265957,119870.0,119860.0,0.02784182]
[1752701644961,0.83265957,119870.0,119860.0,0.03288182]
[1752701646762,0.85744005,119870.0,119860.0,0.03288182]
[1752701648451,0.86059005,119870.0,119860.0,0.02784182]
[1752701648824,0.86059005,119870.0,119860.0,0.02785433]
[1752701649445,0.86059005,119870.0,119860.0,0.02785478]
[1752701650770,1.20059005,119870.0,119860.0,0.02785478]
[1752701650991,1.28617829,119870.0,119860.0,0.02785478]
[1752701651192,1.20494257,119870.0,119860.0,0.02785478]
[1752701651419,1.20494257,119870.0,119860.0,0.02785689]
[1752701651853,0.47180391,119870.0,119860.0,0.02785689]
[1752701652073,0.43781391,119870.0,119860.0,0.03289689]
[1752701652501,0.82748257,119870.0,119860.0,0.03289689]
[1752701653590,0.84587257,119870.0,119860.0,0.03289689]
[1752701654004,0.86107257,119870.0,119860.0,0.03289689]
[1752701654212,0.86107257,119870.0,119860.0,0.02785689]
[1752701655296,0.86422257,119870.0,119860.0,0.02785689]
[1752701657469,1.17944209,119870.0,119860.0,0.02785689]
[1752701657716,1.17944209,119870.0,119860.0,0.0278627]
[1752701657717,1.17948209,119870.0,119860.0,0.0278627]
[1752701657939,1.20453909,119870.0,119860.0,0.0278627]
[1752701658168,1.17633209,119870.0,119860.0,0.0278627]
[1752701658828,1.17633209,119870.0,119860.0,0.02786097]
[1752701659053,0.31418343,119870.0,119860.0,0.03290097]
[1752701659260,0.41307343,119870.0,119860.0,0.03290097]
[1752701659895,0.80483209,119870.0,119860.0,0.03290097]
[1752701660324,0.28059343,119870.0,119860.0,0.04124403]
[1752701660537,0.82113209,119870.0,119860.0,0.03290097]
[1752701661622,0.82113209,119870.0,119860.0,0.03390097]
[1752701661860,0.43146343,119870.0,119860.0,0.03390097]
[1752701662076,0.82113209,119870.0,119860.0,0.03390097]
[1752701663588,0.41303343,119870.0,119860.0,0.03390097]
[1752701663797,0.80270209,119870.0,119860.0,0.03390097]
[1752701664014,0.82765356,119870.0,119860.0,0.03390097]
[1752701664236,0.4379849,119870.0,119860.0,0.03390097]
[1752701664659,0.82765356,119870.0,119860.0,0.03390097]
[1752701665739,0.84395356,119870.0,119860.0,0.03390097]
[1752701665967,0.82765356,119870.0,119860.0,0.03390097]
[1752701666185,0.82765356,119870.0,119860.0,0.01829063]
[1752701666399,0.82765356,119870.0,119860.0,0.03389808]
[1752701666989,0.82974356,119870.0,119860.0,0.03389808]
[1752701667641,0.4400749,119870.0,119860.0,0.03389808]
[1752701667840,0.82974356,119870.0,119860.0,0.03389808]
[1752701668591,0.4379849,119870.0,119860.0,0.03389808]
[1752701669041,0.3055449,119870.0,119860.0,0.01829063]
[1752701669233,0.15632266,119870.0,119860.0,0.6466572]
[1752701669471,0.17300663,119870.0,119860.0,0.6466572]
[1752701669875,0.17300663,119870.0,119860.0,0.25698854]
[1752701671223,0.18134879,119870.0,119860.0,0.25698854]
[1752701672354,0.18969102,119870.0,119860.0,0.25698854]
[1752701672752,0.35653843,119870.0,119860.0,0.24864597]
[1752701672971,0.35653899,119870.0,119860.0,0.26533132]
[1752701673401,0.18969151,119870.0,119860.0,0.27367389]
[1752701673658,0.34819732,119870.0,119860.0,0.24864597]
[1752701674083,0.33985516,119870.0,119860.0,0.24864611]
[1752701674718,0.32317063,119870.0,119860.0,0.22469495]
[1752701674944,0.32317063,119870.0,119860.0,0.24029492]
[1752701675401,0.32317063,119870.0,119860.0,0.24863784]
[1752701675673,0.32317063,119870.0,119860.0,0.24029492]
[1752701676211,0.32317063,119870.0,119860.0,0.0650906]
[1752701676471,0.31482826,119870.0,119860.0,0.0650906]
[1752701676703,0.7919772,119870.0,119860.0,0.0338406]
[1752701676929,0.8223772,119870.0,119860.0,0.0338406]
[1752701677602,0.8223772,119870.0,119860.0,0.0288506]
[1752701677824,0.8255372,119870.0,119860.0,0.0288506]
[1752701683317,0.8255372,119870.0,119860.0,0.01325063]
[1752701683555,0.8255372,119870.0,119860.0,0.02885425]
[1752701684533,0.8255372,119870.0,119860.0,0.02885407]
[1752701687046,1.25129682,119870.0,119860.0,0.02885407]
[1752701687258,1.03744972,119870.0,119860.0,1e-08]
[1752701687487,1.16980972,119870.0,119860.0,1e-08]
[1752701687938,0.78014106,119870.0,119860.0,1e-08]
[1752701688152,1.16980972,119870.0,119860.0,1e-08]
[1752701688788,1.17680972,119870.0,119860.0,1e-08]
[1752701691396,1.26256934,119870.0,119860.0,1e-08]
[1752701692139,1.17680972,119870.0,119860.0,1e-08]
[1752701692344,0.2226451,119860.0,119850.0,0.0002]
[1752701692621,0.83215404,119860.0,119850.0,0.00069913]
[1752701692890,0.83531404,119860.0,119850.0,0.00069913]
[1752701693829,0.83731404,119860.0,119850.0,0.00069913]
[1752701695843,0.41158538,119860.0,119850.0,0.00578913]
[1752701696099,0.83255404,119860.0,119850.0,0.00578913]
[1752701696342,0.83571404,119860.0,119850.0,0.00069913]
[1752701697037,1.33081404,119860.0,119850.0,0.00069913]
[1752701697282,0.53810328,119850.0,119840.0,0.0022]
[1752701697511,1.57314088,119850.0,119840.0,0.0022]
[1752701698203,1.57314088,119850.0,119830.0,0.0002]
[1752701698423,2.05478195,119840.0,119830.0,1e-08]
[1752701698654,2.34595157,119840.0,119830.0,1e-08]
[1752701698879,2.35910694,119840.0,119830.0,1e-08]
[1752701699116,1.36165,119840.0,119830.0,1e-08]
[1752701699417,1.84580866,119840.0,119830.0,0.02067386]
[1752701700302,1.50580866,119840.0,119830.0,0.02067386]
[1752701700787,1.50580866,119840.0,119830.0,0.02066395]
[1752701701457,1.50580866,119840.0,119830.0,0.02066497]
[1752701701676,1.11614,119840.0,119830.0,0.02066497]
[1752701701903,1.50580866,119840.0,119830.0,0.02066497]
[1752701702563,1.51016118,119840.0,119830.0,0.02066497]
[1752701703406,1.51221118,119840.0,119830.0,0.02066497]
[1752701703618,1.51186028,119840.0,119830.0,0.02066497]
[1752701703841,1.52706028,119840.0,119830.0,0.02066497]
[1752701704899,1.51186028,119840.0,119830.0,0.01766497]
[1752701705116,1.52706028,119840.0,119830.0,0.01766497]
[1752701705981,1.52806028,119840.0,119830.0,0.01766497]
[1752701706350,0.99716587,119840.0,119830.0,0.02068497]
[1752701706546,1.12948587,119840.0,119830.0,0.06213012]
[1752701706816,1.12114162,119840.0,119830.0,0.22068808]
[1752701707297,1.12114162,119840.0,119830.0,0.22903323]
[1752701708228,1.12114162,119840.0,119830.0,0.23737831]
[1752701708450,0.92086162,119840.0,119830.0,0.22180335]
[1752701708687,0.90770625,119840.0,119830.0,0.23738092]
[1752701709135,0.90770625,119840.0,119830.0,0.24572579]
[1752701709368,0.90770625,119840.0,119830.0,0.23738092]
[1752701709593,0.90770625,119840.0,119830.0,0.24572593]
[1752701710068,0.001,119840.0,119830.0,0.65208412]
[1752701710539,0.14906085,119840.0,119830.0,0.65208412]
[1752701711008,0.01554085,119840.0,119830.0,0.26241546]
[1752701711234,0.15740482,119840.0,119830.0,0.26241546]
[1752701711488,0.15740482,119840.0,119830.0,0.26241835]
[1752701711708,0.15740482,119840.0,119830.0,0.65208701]
[1752701712119,0.15748482,119840.0,119830.0,0.26241835]
[1752701712374,0.15748482,119840.0,119830.0,0.65208701]
[1752701713173,0.14914085,119840.0,119830.0,0.65208701]
[1752701713442,0.1336,119840.0,119830.0,0.65208701]
[1752701713912,0.1419439,119840.0,119830.0,0.65208701]
[1752701714237,0.15028794,119840.0,119830.0,0.65208701]
[1752701714497,0.15028794,119840.0,119830.0,0.65208806]
[1752701714743,0.1419439,119840.0,119830.0,0.65208806]
[1752701715004,0.15028794,119840.0,119830.0,0.65208806]
[1752701715299,0.15863212,119840.0,119830.0,0.65208806]
[1752701715604,0.15028794,119840.0,119830.0,0.65208806]
[1752701716084,0.1419439,119840.0,119830.0,0.65208806]
[1752701716306,0.15648475,119840.0,119830.0,0.65208806]
[1752701716544,0.17317304,119840.0,119830.0,0.65208806]
[1752701716999,0.18151729,119840.0,119830.0,0.65208806]
[1752701717224,0.35675085,119840.0,119830.0,0.65208806]
[1752701717430,0.35675085,119840.0,119830.0,0.65208627]
[1752701717642,0.18986167,119840.0,119830.0,0.65208627]
[1752701719408,0.80894767,119840.0,119830.0,0.01557973]
[1752701719644,0.83954767,119840.0,119830.0,0.01557973]
[1752701719866,0.84248767,119840.0,119830.0,0.01557973]
[1752701720082,0.84348767,119840.0,119830.0,0.01557973]
[1752701720291,0.84348767,119840.0,119830.0,1e-08]
[1752701720955,0.20654812,119830.0,119820.0,0.0022]
[1752701721174,0.68377706,119830.0,119820.0,0.0022]
[1752701722306,0.70943307,119830.0,119820.0,0.0022]
[1752701722513,0.68377706,119830.0,119820.0,0.0022]
[1752701723347,0.68377706,119830.0,119820.0,0.0032]
[1752701727371,0.65042706,119830.0,119820.0,0.00819]
[1752701728574,0.65042706,119830.0,119820.0,0.02399]
[1752701728793,0.78346706,119830.0,119820.0,0.03929]
[1752701729225,0.78346706,119830.0,119820.0,0.00819]
[1752701730163,0.3947984,119830.0,119820.0,0.00819]
[1752701730375,0.78446706,119830.0,119820.0,0.00819]
[1752701730820,0.78454706,119830.0,119820.0,0.00819]
[1752701732188,0.78482706,119830.0,119820.0,0.00819]
[1752701732426,0.78482706,119830.0,119820.0,0.02377151]
[1752701733108,0.3951584,119830.0,119820.0,0.02377151]
[1752701733348,0.78482706,119830.0,119820.0,0.02377151]
[1752701733561,0.78490706,119830.0,119820.0,0.02377151]
[1752701734440,0.78490706,119830.0,119820.0,0.02377106]
[1752701735117,0.78490706,119830.0,119820.0,0.02377155]
[1752701735781,0.81863706,119830.0,119820.0,0.02377155]
[1752701736022,0.80283706,119830.0,119820.0,0.02377155]
[1752701736692,0.65345706,119830.0,119820.0,0.02377155]
[1752701736912,0.4111384,119830.0,119820.0,0.02377155]
[1752701737136,0.78490706,119830.0,119820.0,0.02377155]
[1752701738051,0.3952384,119830.0,119820.0,0.02377155]
[1752701738494,0.4111384,119830.0,119820.0,0.02377155]
[1752701738741,0.80080706,119830.0,119820.0,0.02377155]
[1752701739654,0.4111384,119830.0,119820.0,0.02377155]
[1752701740120,0.2617584,119830.0,119820.0,0.02377155]
[1752701740336,0.78698706,119830.0,119820.0,0.02377155]
[1752701740564,0.3973184,119830.0,119820.0,0.02377155]
[1752701740798,0.78698706,119830.0,119820.0,0.02377155]
[1752701741017,0.3973184,119830.0,119820.0,0.02377155]
[1752701741244,0.78698706,119830.0,119820.0,0.02377155]
[1752701741692,0.3973184,119830.0,119820.0,0.02377155]
[1752701742860,0.3973184,119830.0,119820.0,0.00819]
[1752701743093,0.3973184,119830.0,119820.0,0.02377036]
[1752701743539,0.40670334,119830.0,119820.0,0.44433902]
[1752701743781,0.40670334,119830.0,119820.0,0.05467036]
[1752701745149,0.27010334,119830.0,119820.0,0.05467036]
[1752701745412,0.40686334,119830.0,119820.0,0.05467036]
[1752701745650,0.813562,119830.0,119820.0,0.02075036]
[1752701745879,0.84786285,119830.0,119820.0,0.01878036]
[1752701746339,0.87292685,119830.0,119820.0,0.01878036]
[1752701746585,0.87727937,119830.0,119820.0,0.01878036]
[1752701747723,0.48761071,119830.0,119820.0,0.01878036]
[1752701747949,0.87727937,119830.0,119820.0,0.01878036]
[1752701748604,0.87727937,119830.0,119820.0,0.01778036]
[1752701749046,0.88327937,119830.0,119820.0,0.01778036]
[1752701750915,0.9443251,119830.0,119820.0,0.01778036]
[1752701751135,0.95207226,119820.0,119810.0,1e-08]
[1752701751362,1.03961254,119820.0,119810.0,1e-08]
[1752701751578,1.04277254,119820.0,119810.0,1e-08]
[1752701752240,0.18983285,119800.0,119790.0,0.0004]
[1752701752460,1.22529045,119800.0,119790.0,0.0004]
[1752701752688,0.22174749,119790.0,119780.0,0.1024]
[1752701752904,0.69895643,119790.0,119780.0,0.1024]
[1752701753147,0.70211643,119790.0,119780.0,0.1024]
[1752701753373,0.72718943,119790.0,119780.0,0.1024]
[1752701753802,1.06718943,119790.0,119780.0,0.1024]
[1752701755143,1.20394943,119790.0,119780.0,0.1024]
[1752701755354,0.82528077,119790.0,119780.0,0.1034]
[1752701755805,1.21494943,119790.0,119780.0,0.1034]
[1752701756248,1.21594943,119790.0,119780.0,1e-08]
[1752701756459,0.56036212,119780.0,119770.0,1e-08]
[1752701756690,1.44776071,119780.0,119770.0,1e-08]
[1752701756941,1.06125205,119780.0,119770.0,1e-08]
[1752701757160,1.28389167,119780.0,119770.0,1e-08]
[1752701757842,1.30992987,119780.0,119770.0,1e-08]
[1752701758144,1.31392987,119780.0,119770.0,1e-08]
[1752701758369,1.24068473,119780.0,119770.0,1e-08]
[1752701759252,1.23668473,119780.0,119770.0,1e-08]
[1752701759726,1.24002873,119780.0,119770.0,1e-08]
[1752701760164,1.10314873,119780.0,119770.0,1e-08]
[1752701760382,1.23998873,119780.0,119770.0,1e-08]
[1752701761038,1.25198873,119780.0,119770.0,0.00100001]
[1752701761927,1.25634125,119780.0,119770.0,0.00100001]
[1752701763947,0.77950125,119780.0,119770.0,0.00100001]
[1752701764168,0.91318125,119780.0,119770.0,0.00100001]
[1752701764399,0.91627125,119780.0,119770.0,0.00100001]
[1752701764875,1.34203087,119780.0,119770.0,1e-08]
[1752701765102,1.73169953,119780.0,119770.0,1e-08]
[1752701765324,1.20519087,119780.0,119770.0,1e-08]
[1752701765555,1.34247087,119780.0,119770.0,1e-08]
[1752701766027,1.73213953,119780.0,119770.0,1e-08]
[1752701766473,1.64637991,119780.0,119770.0,1e-08]
[1752701767787,1.64171033,119780.0,119770.0,1e-08]
[1752701768661,0.86237301,119780.0,119770.0,1e-08]
[1752701768877,1.25204167,119780.0,119770.0,1e-08]
[1752701774036,1.64171033,119780.0,119770.0,1e-08]
[1752701774263,1.00091408,119770.0,119760.0,1e-08]
[1752701774492,1.22864436,119770.0,119760.0,1e-08]
[1752701774946,1.67948298,119770.0,119760.0,1e-08]
[1752701776171,1.68448298,119770.0,119760.0,1e-08]
[1752701779472,1.64596656,119750.0,119740.0,1e-08]
[1752701779689,1.2562979,119750.0,119740.0,1e-08]
[1752701781005,1.23194232,119750.0,119740.0,1e-08]
[1752701782975,0.73684232,119750.0,119740.0,1e-08]
[1752701783620,0.73784232,119750.0,119740.0,1e-08]
[1752701783819,0.82360194,119750.0,119740.0,1e-08]
[1752701786624,1.21360194,119750.0,119740.0,1e-08]
[1752701786835,1.23153663,119750.0,119740.0,1e-08]
[1752701787705,1.18153663,119750.0,119740.0,1e-08]
[1752701787969,1.23153663,119750.0,119740.0,1e-08]
[1752701788839,1.25635759,119750.0,119740.0,1e-08]
[1752701790051,0.19828711,119730.0,119720.0,1e-08]
[1752701790257,0.47203588,119730.0,119720.0,1e-08]
[1752701790472,1.10043471,119730.0,119720.0,1e-08]
[1752701790684,1.26240471,119730.0,119720.0,1e-08]
[1752701791332,1.26290766,119730.0,119720.0,1e-08]
[1752701791976,0.733269,119730.0,119720.0,0.00511001]
[1752701792193,0.733269,119730.0,119720.0,0.00213001]
[1752701792194,0.870149,119730.0,119720.0,0.00213001]
[1752701792421,1.26717018,119730.0,119720.0,1e-08]
[1752701792667,1.28169111,119730.0,119720.0,1e-08]
[1752701793530,1.60501111,119730.0,119720.0,0.00203001]
[1752701793663,0.82567379,119730.0,119720.0,0.00203001]
[1752701794057,1.62111111,119730.0,119720.0,1e-08]
[1752701794288,1.23144245,119730.0,119720.0,1e-08]
[1752701794739,1.62111111,119730.0,119720.0,1e-08]
[1752701795207,1.62410111,119730.0,119720.0,1e-08]
[1752701795452,0.82725286,119730.0,119720.0,1e-08]
[1752701795946,1.60659018,119730.0,119720.0,1e-08]
[1752701796169,1.60659018,119730.0,119720.0,0.00518001]
[1752701796170,1.18341152,119730.0,119720.0,0.00518001]
[1752701796828,1.19891152,119730.0,119720.0,0.00518001]
[1752701797720,1.06191152,119730.0,119720.0,0.00518001]
[1752701797905,1.18345152,119730.0,119720.0,0.00518001]
[1752701798326,1.19955152,119730.0,119720.0,0.00518001]
[1752701798527,1.20163152,119730.0,119720.0,0.00518001]
[1752701799421,1.21743152,119730.0,119720.0,0.00518001]
[1752701800308,1.18633152,119730.0,119720.0,0.00518001]
[1752701800536,1.20253152,119730.0,119720.0,0.00518001]
[1752701800778,1.21813152,119730.0,119720.0,0.00518001]
[1752701801200,1.20253152,119730.0,119720.0,0.00518001]
[1752701801415,1.18425152,119730.0,119720.0,0.00518001]
[1752701801820,1.18633152,119730.0,119720.0,0.00518001]
[1752701802252,1.20253152,119730.0,119720.0,0.00518001]
[1752701802674,1.21813152,119730.0,119720.0,0.00518001]
[1752701802898,1.60780018,119730.0,119720.0,1e-08]
[1752701803377,1.21813152,119730.0,119720.0,1e-08]
[1752701803575,1.60780018,119730.0,119720.0,1e-08]
[1752701803992,1.18417152,119730.0,119720.0,0.00518001]
[1752701804227,1.57384018,119730.0,119720.0,0.02028001]
[1752701804438,1.18417152,119730.0,119720.0,0.00518001]
[1752701804666,1.20175152,119730.0,119720.0,0.00518001]
[1752701805493,1.06499152,119730.0,119720.0,0.00518001]
[1752701805703,1.18637152,119730.0,119720.0,0.00518001]
[1752701806139,1.20187152,119730.0,119720.0,0.00518001]
[1752701806901,0.70741152,119730.0,119720.0,0.00518001]
[1752701807130,0.84429152,119730.0,119720.0,0.03638001]
[1752701807595,0.56134999,119720.0,119710.0,0.0002]
[1752701807822,1.56822759,119720.0,119710.0,0.0002]
[1752701808046,1.76874759,119720.0,119710.0,0.01584319]
[1752701808739,1.78459159,119720.0,119710.0,0.01584319]
[1752701808959,1.78459159,119720.0,119710.0,0.01984319]
[1752701809735,1.78559159,119720.0,119710.0,0.01984319]
[1752701810379,1.78583159,119720.0,119710.0,0.01984319]
[1752701810595,1.79625656,119720.0,119710.0,0.01984319]
[1752701811479,1.62765656,119720.0,119710.0,0.01985223]
[1752701811698,1.75140159,119720.0,119710.0,0.02503223]
[1752701811919,1.75140159,119720.0,119710.0,0.02188223]
[1752701812146,1.75140159,119720.0,119710.0,0.02188248]
[1752701812387,1.76790159,119720.0,119710.0,0.02188248]
[1752701812807,1.85366121,119720.0,119710.0,0.02188248]
[1752701813235,1.71650121,119720.0,119710.0,0.01985248]
[1752701813443,1.85370121,119720.0,119710.0,0.01985248]
[1752701814312,1.07436389,119720.0,119710.0,0.01985248]
[1752701814527,1.85370121,119720.0,119710.0,0.01985248]
[1752701815583,1.78354159,119720.0,119710.0,0.01985248]
[1752701816052,1.78653159,119720.0,119710.0,0.01985248]
[1752701817627,1.63074159,119720.0,119710.0,0.02188248]
[1752701817839,1.76774159,119720.0,119710.0,0.02503248]
[1752701818303,1.76774159,119720.0,119710.0,0.02188248]
[1752701818511,1.75124159,119720.0,119710.0,0.02188248]
[1752701818732,1.75124159,119720.0,119710.0,0.02503248]
[1752701819374,1.22249293,119720.0,119710.0,0.02503248]
[1752701819588,1.35945293,119720.0,119710.0,0.02503248]
[1752701820259,1.35945293,119720.0,119710.0,0.04073217]
[1752701820946,1.35945293,119720.0,119710.0,0.04073269]
[1752701821701,0.29230427,119720.0,119710.0,0.05643269]
[1752701821936,0.27862478,119720.0,119710.0,0.23185663]
[1752701822170,0.4239376,119720.0,119710.0,0.24856318]
[1752701822392,0.40723231,119720.0,119710.0,0.24021008]
[1752701822630,0.39052674,119720.0,119710.0,0.06478621]
[1752701822822,0.39052674,119720.0,119710.0,0.05643269]
[1752701823073,0.26810759,119720.0,119710.0,0.05643269]
[1752701823296,0.40510759,119720.0,119710.0,0.05643269]
[1752701823774,0.40506759,119720.0,119710.0,0.05643269]
[1752701824664,0.40506759,119720.0,119710.0,0.23185656]
[1752701824882,0.42169288,119720.0,119710.0,0.23185649]
[1752701825104,0.42169288,119720.0,119710.0,0.05643269]
[1752701825354,0.42169288,119720.0,119710.0,0.2402098]
[1752701825633,0.42169288,119720.0,119710.0,0.24856304]
[1752701826158,0.42169288,119720.0,119710.0,0.2402098]
[1752701826655,0.42169288,119720.0,119710.0,0.25691614]
[1752701826879,0.4300457,119720.0,119710.0,0.25691614]
[1752701827105,0.4300457,119720.0,119710.0,0.26526917]
[1752701827334,0.25463642,119720.0,119710.0,0.26526917]
[1752701827570,0.4300457,119720.0,119710.0,0.24856304]
[1752701828032,0.24612346,119720.0,119710.0,0.6465562]
[1752701828266,0.26282854,119720.0,119710.0,0.6465562]
[1752701828500,0.12610847,119720.0,119710.0,0.6465562]
[1752701828737,0.25447593,119720.0,119710.0,0.25688754]
[1752701828961,0.25447593,119720.0,119710.0,0.24853416]
[1752701829240,1.20119006,119720.0,119710.0,0.01982416]
[1752701829515,1.1701514,119720.0,119710.0,0.02182416]
[1752701829782,1.1535514,119720.0,119710.0,0.02479416]
[1752701832464,1.0165114,119720.0,119710.0,0.02479416]
[1752701832674,1.1536714,119720.0,119710.0,0.02479416]
[1752701832856,1.1536714,119720.0,119710.0,0.01982416]
[1752701833100,1.1695714,119720.0,119710.0,0.01982416]
[1752701833311,0.77990274,119720.0,119710.0,0.01982416]
[1752701833528,1.1884014,119720.0,119710.0,0.01982416]
[1752701834101,1.60315906,119720.0,119710.0,0.01982416]
[1752701834565,0.82382174,119720.0,119710.0,0.01982416]
[1752701835017,1.60315906,119720.0,119710.0,0.01982416]
[1752701835266,0.82382174,119720.0,119710.0,0.01982416]
[1752701835518,1.60315906,119720.0,119710.0,0.01982416]
[1752701835993,0.0250593,119710.0,119700.0,0.10103333]
[1752701836237,0.0250593,119710.0,119700.0,1e-08]
[1752701836238,0.570319,119710.0,119700.0,1e-08]
[1752701836466,0.55907127,119710.0,119660.0,0.00600069]
[1752701836735,0.55907127,119710.0,119660.0,0.00697069]
[1752701836736,0.19637391,119670.0,119660.0,0.00697069]
[1752701836980,0.75302933,119670.0,119660.0,0.00600069]
[1752701837219,0.36336067,119670.0,119660.0,0.00600069]
[1752701837447,0.75302933,119670.0,119660.0,0.00600069]
[1752701837666,0.83853961,119670.0,119660.0,0.00600069]
[1752701837889,0.42811419,119670.0,119660.0,0.00997069]
[1752701838124,0.81575285,119670.0,119660.0,0.00997069]
[1752701838354,0.42658683,119670.0,119660.0,0.00997069]
[1752701838591,0.42658683,119670.0,119660.0,0.02637069]